[Event "Int SVK-ch Open 2020"]
[Site "Drienica"]
[Date "2020.08.08"]
[Round "2.5"]
[White "Sankova, Stella"]
[Black "Mrvova Alena"]
[Result "1/2-1/2"]
[ECO "B09"]
[WhiteElo "1997"]
[BlackElo "2188"]
[Annotator "ChessBase"]
[PlyCount "72"]
[EventDate "2020.08.07"]
[EventType "swiss"]
[EventCountry "SVK"]
[SourceTitle "playchess.com"]
[Source "ChessBase"]
[SourceQuality "1"]
[TimeControl "40/5400+30:1800+30"]

1. e4 {[%emt 0:00:00]} d6 {[%emt 0:00:18]} 2. d4 {[%emt 0:00:14]} g6 {[%emt 0:00:28]} 3. Nc3 {[%emt 0:00:38]} Bg7 {[%emt 0:00:13]} 4. f4 {[%emt 0:00:57]} a6 {[%emt 0:00:36]} 5. Nf3 {[%emt 0:00:32]} Nf6 {[%emt 0:02:15]} 6. Bd3 {[%emt 0:00:53]} O-O {[%emt 0:01:37]} 7. O-O {[%emt 0:01:55]} b5 {[%emt 0:00:28]} 8. Qe1 {[%emt 0:16:36]} b4 {[%emt 0:03:21]} 9. Ne2 {[%emt 0:02:13]} c5 {[%emt 0:01:07]} 10. dxc5 {[%emt 0:18:06]} dxc5 {[%emt 0:00:10]} 11. Be3 {[%emt 0:00:21]} Qc7 {[%emt 0:01:00]} 12. Ne5 {[%emt 0:07:13]} Ng4 {[%emt 0:04:21]} 13. Nxg4 {[%emt 0:02:37]} Bxg4 {[%emt 0:00:07]} 14. e5 {[%emt 0:01:48]} Nd7 {[%emt 0:03:07]} 15. Qh4 {[%emt 0:02:06]} Bxe2 {[%emt 0:02:28]} 16. Bxe2 {[%emt 0:00:07]} Nb6 {[%emt 0:00:20]} 17. Qf2 {[%emt 0:04:40]} Nd5 {[%emt 0:10:33]} 18. Rfd1 {[%emt 0:08:03]} Nxe3 {[%emt 0:03:59]} 19. Qxe3 {[%emt 0:00:05]} Rfd8 {[%emt 0:03:39]} 20. Bc4 {[%emt 0:03:26]} a5 {[%emt 0:02:29]} 21. a4 {[%emt 0:03:19]} Rac8 {[%emt 0:04:47]} 22. b3 {[%emt 0:03:35]} e6 {[%emt 0:01:32]} 23. Qf3 {[%emt 0:02:16]} Bh6 {[%emt 0:03:13]} 24. g3 {[%emt 0:02:33]} Bf8 {[%emt 0:02:14]} 25. Rxd8 {[%emt 0:04:34]} Rxd8 {[%emt 0:00:08]} 26. Rd1 {[%emt 0:00:07]} Rxd1+ {[%emt 0:01:02]} 27. Qxd1 {[%emt 0:00:05]} Qc6 {[%emt 0:00:34]} 28. Qd3 {[%emt 0:02:22]} Kg7 {[%emt 0:00:30]} 29. Qe2 {[%emt 0:00:46]} h6 {[%emt 0:00:21]} 30. h4 {[%emt 0:01:53]} Be7 {[%emt 0:00:26]} 31. Kh2 {[%emt 0:02:35]} Qd7 {[%emt 0:02:42]} 32. Qd3 {[%emt 0:00:15]} Qxd3 {[%emt 0:00:33]} 33. Bxd3 {[%emt 0:00:27]} f6 {[%emt 0:00:07]} 34. exf6+ {[%emt 0:00:56]} Kxf6 {[%emt 0:00:07]} 35. Kg2 {[%emt 0:00:42]} Bd6 {[%emt 0:01:16]} 36. Kf3 {[%emt 0:00:17]} e5 {[%emt 0:00:07]} 1/2-1/2

[Event "Int SVK-ch Open 2020"]
[Site "Drienica"]
[Date "2020.08.08"]
[Round "2.6"]
[White "Kolesar Milan"]
[Black "Skovran, Jaroslav"]
[Result "1-0"]
[ECO "D13"]
[WhiteElo "2186"]
[BlackElo "1971"]
[Annotator "ChessBase"]
[PlyCount "75"]
[EventDate "2020.08.07"]
[EventType "swiss"]
[EventCountry "SVK"]
[SourceTitle "playchess.com"]
[Source "ChessBase"]
[SourceQuality "1"]
[TimeControl "40/5400+30:1800+30"]

1. Nf3 {[%emt 0:00:00]} d5 {[%emt 0:00:00]} 2. d4 {[%emt 0:00:00]} Nf6 {[%emt 0:00:00]} 3. c4 {[%emt 0:00:00]} c6 {[%emt 0:00:11]} 4. cxd5 {[%emt 0:00:00]} cxd5 {[%emt 0:00:17]} 5. Nc3 {[%emt 0:00:00]} Nc6 {[%emt 0:00:23]} 6. Bf4 {[%emt 0:00:13]} e6 {[%emt 0:01:14]} 7. e3 {[%emt 0:00:16]} a6 {[%emt 0:00:55]} 8. Bd3 {[%emt 0:01:41]} Be7 {[%emt 0:00:30]} 9. h3 {[%emt 0:00:48]} O-O {[%emt 0:01:17]} 10. O-O {[%emt 0:00:35]} b5 {[%emt 0:00:15]} 11. Rc1 {[%emt 0:01:45]} Bb7 {[%emt 0:00:41]} 12. Qe2 {[%emt 0:04:02]} Qb6 {[%emt 0:02:26]} 13. Rfd1 {[%emt 0:02:39]} Na5 {[%emt 0:01:40]} 14. Na4 {[%emt 0:08:34]} bxa4 {[%emt 0:02:42]} 15. Bc7 {[%emt 0:00:34]} Qa7 {[%emt 0:02:21]} 16. Bxa5 {[%emt 0:00:07]} a3 {[%emt 0:01:01]} 17. b3 {[%emt 0:02:37]} Rfc8 {[%emt 0:01:02]} 18. Bc7 {[%emt 0:04:03]} Ne8 {[%emt 0:02:25]} 19. Be5 {[%emt 0:05:12]} f6 {[%emt 0:02:19]} 20. Bf4 {[%emt 0:06:42]} Nd6 {[%emt 0:00:43]} 21. Bxd6 {[%emt 0:06:12]} Bxd6 {[%emt 0:00:15]} 22. e4 {[%emt 0:01:51]} dxe4 {[%emt 0:11:55]} 23. Bxe4 {[%emt 0:01:12]} Bxe4 {[%emt 0:01:02]} 24. Qxe4 {[%emt 0:00:08]} Qd7 {[%emt 0:00:15]} 25. Rc4 {[%emt 0:11:07]} a5 {[%emt 0:13:56]} 26. Re1 {[%emt 0:06:01]} Re8 {[%emt 0:00:43]} 27. Rec1 {[%emt 0:10:21]} Rad8 {[%emt 0:02:55]} 28. Rc6 {[%emt 0:02:11]} Rc8 {[%emt 0:02:03]} 29. R1c4 {[%emt 0:03:23]} Rxc6 {[%emt 0:03:44]} 30. Rxc6 {[%emt 0:00:04]} Rc8 {[%emt 0:01:04]} 31. d5 {[%emt 0:02:20]} e5 {[%emt 0:01:07]} 32. Nd2 {[%emt 0:04:25]} Re8 {[%emt 0:07:14]} 33. Nc4 {[%emt 0:02:43]} Bb4 {[%emt 0:06:54]} 34. Nb6 {[%emt 0:04:42]} Qf7 {[%emt 0:00:50]} 35. d6 {[%emt 0:01:56]} Rd8 {[%emt 0:00:43]} 36. d7 {[%emt 0:01:44]} g6 {[%emt 0:01:48]} 37. Rc8 {[%emt 0:00:44]} Qf8 {[%emt 0:01:05]} 38. Qa8 {[%emt 0:00:24]} 1-0

[Event "Int SVK-ch Open 2020"]
[Site "Drienica"]
[Date "2020.08.08"]
[Round "2.6"]
[White "Kardis, Benjamin"]
[Black "Ganzova, Veronika"]
[Result "1-0"]
[ECO "A45"]
[WhiteElo "2049"]
[BlackElo "1614"]
[Annotator "ChessBase"]
[PlyCount "87"]
[EventDate "2020.08.07"]
[EventType "swiss"]
[EventCountry "SVK"]
[SourceTitle "playchess.com"]
[Source "ChessBase"]
[SourceQuality "1"]
[TimeControl "40/5400+30:1800+30"]

1. d4 {[%emt 0:00:00]} Nf6 {[%emt 0:00:00]} 2. e3 {[%emt 0:00:00]} g6 {[%emt 0:00:23]} 3. Bd3 {[%emt 0:00:16]} Bg7 {[%emt 0:00:17]} 4. c3 {[%emt 0:00:10]} d6 {[%emt 0:00:32]} 5. Ne2 {[%emt 0:01:45]} O-O {[%emt 0:00:46]} 6. e4 {[%emt 0:00:16]} e5 {[%emt 0:01:26]} 7. f3 {[%emt 0:00:31]} Nc6 {[%emt 0:03:58]} 8. Bg5 {[%emt 0:02:22]} h6 {[%emt 0:01:59]} 9. Bh4 {[%emt 0:00:26]} Bd7 {[%emt 0:02:57]} 10. Na3 {[%emt 0:03:13]} a6 {[%emt 0:01:53]} 11. Qd2 {[%emt 0:00:11]} Rb8 {[%emt 0:03:45]} 12. d5 {[%emt 0:00:59]} Ne7 {[%emt 0:02:57]} 13. Bxf6 {[%emt 0:00:12]} Bxf6 {[%emt 0:03:09]} 14. Qxh6 {[%emt 0:00:35]} Nxd5 {[%emt 0:12:53]} 15. h4 {[%emt 0:01:39]} Bg7 {[%emt 0:05:15]} 16. Qd2 {[%emt 0:00:27]} Nf6 {[%emt 0:02:25]} 17. g4 {[%emt 0:00:43]} Nh7 {[%emt 0:06:09]} 18. Nc2 {[%emt 0:03:14]} Be6 {[%emt 0:04:23]} 19. Ne3 {[%emt 0:02:16]} c6 {[%emt 0:01:18]} 20. f4 {[%emt 0:04:48]} exf4 {[%emt 0:01:58]} 21. Nxf4 {[%emt 0:00:06]} Qd7 {[%emt 0:00:28]} 22. Nxe6 {[%emt 0:04:26]} fxe6 {[%emt 0:01:28]} 23. O-O-O {[%emt 0:00:19]} Rf4 {[%emt 0:00:57]} 24. g5 {[%emt 0:03:09]} Rbf8 {[%emt 0:00:45]} 25. Rh2 {[%emt 0:00:13]} Qf7 {[%emt 0:01:08]} 26. Re1 {[%emt 0:01:54]} Rf2 {[%emt 0:01:45]} 27. Re2 {[%emt 0:01:15]} Rxh2 {[%emt 0:01:10]} 28. Rxh2 {[%emt 0:00:04]} Qf4 {[%emt 0:00:08]} 29. Nc4 {[%emt 0:05:12]} Qg3 {[%emt 0:03:31]} 30. Rg2 {[%emt 0:04:23]} Qxh4 {[%emt 0:01:17]} 31. Kc2 {[%emt 0:05:59]} d5 {[%emt 0:03:56]} 32. exd5 {[%emt 0:00:16]} exd5 {[%emt 0:01:14]} 33. Na5 {[%emt 0:06:10]} Qa4+ {[%emt 0:03:23]} 34. Nb3 {[%emt 0:00:05]} d4 {[%emt 0:03:49]} 35. cxd4 {[%emt 0:05:19]} Bxd4 {[%emt 0:00:30]} 36. Bxg6 {[%emt 0:00:36]} Qc4+ {[%emt 0:02:57]} 37. Kb1 {[%emt 0:00:15]} Rf1+ {[%emt 0:06:02]} 38. Nc1 {[%emt 0:00:29]} Rh1 {[%emt 0:03:46]} 39. Qf4 {[%emt 0:04:49]} c5 {[%emt 0:08:18]} 40. Bc2 {[%emt 0:01:52]} Qf1 {[%emt 0:02:57]} 41. Bxh7+ {[%emt 0:36:28]} Kxh7 {[%emt 0:30:15]} 42. Rh2+ {[%emt 0:00:21]} Kg7 {[%emt 0:00:00]} 43. Qc7+ {[%emt 0:00:00]} Kg6 {[%emt 0:00:00]} 44. Qh7+ {[%emt 0:00:00]} 1-0

[Event "Int SVK-ch Open 2020"]
[Site "Drienica"]
[Date "2020.08.08"]
[Round "2.8"]
[White "Bochnicka Vladimir"]
[Black "Svobodova, Michaela"]
[Result "1-0"]
[ECO "B41"]
[WhiteElo "2151"]
[BlackElo "1997"]
[Annotator "ChessBase"]
[PlyCount "75"]
[EventDate "2020.08.07"]
[EventType "swiss"]
[EventCountry "SVK"]
[SourceTitle "playchess.com"]
[Source "ChessBase"]
[SourceQuality "1"]
[TimeControl "40/5400+30:1800+30"]

1. e4 {[%emt 0:00:00]} c5 {[%emt 0:00:00]} 2. Nf3 {[%emt 0:00:00]} e6 {[%emt 0:00:08]} 3. d4 {[%emt 0:00:00]} cxd4 {[%emt 0:00:08]} 4. Nxd4 {[%emt 0:00:00]} a6 {[%emt 0:00:19]} 5. c4 {[%emt 0:00:04]} Nf6 {[%emt 0:01:20]} 6. Nc3 {[%emt 0:00:26]} Bb4 {[%emt 0:02:21]} 7. Qd3 {[%emt 0:02:05]} Qc7 {[%emt 0:05:47]} 8. a3 {[%emt 0:03:00]} Bxc3+ {[%emt 0:04:59]} 9. Qxc3 {[%emt 0:00:59]} Nxe4 {[%emt 0:02:52]} 10. Nb5 {[%emt 0:01:18]} axb5 {[%emt 0:17:23]} 11. Qxg7 {[%emt 0:00:07]} Rf8 {[%emt 0:03:19]} 12. Bh6 {[%emt 0:00:13]} Qc5 {[%emt 0:03:43]} 13. f3 {[%emt 0:01:47]} Nf2 {[%emt 0:09:31]} 14. b4 {[%emt 0:00:46]} Qe7 {[%emt 0:07:37]} 15. Kxf2 {[%emt 0:00:35]} Nc6 {[%emt 0:02:36]} 16. Qxf8+ {[%emt 0:08:13]} Qxf8 {[%emt 0:00:12]} 17. Bxf8 {[%emt 0:00:04]} Kxf8 {[%emt 0:00:08]} 18. cxb5 {[%emt 0:09:00]} Nxb4 {[%emt 0:03:32]} 19. Rc1 {[%emt 0:00:18]} Nd5 {[%emt 0:01:58]} 20. Bd3 {[%emt 0:01:21]} d6 {[%emt 0:03:11]} 21. Rhd1 {[%emt 0:01:40]} Bd7 {[%emt 0:01:53]} 22. Bxh7 {[%emt 0:03:37]} Rxa3 {[%emt 0:07:15]} 23. Be4 {[%emt 0:05:57]} Nc3 {[%emt 0:06:45]} 24. Rxd6 {[%emt 0:04:59]} Nxe4+ {[%emt 0:01:20]} 25. fxe4 {[%emt 0:00:09]} Bxb5 {[%emt 0:00:34]} 26. h4 {[%emt 0:02:21]} Bc6 {[%emt 0:01:25]} 27. Re1 {[%emt 0:00:13]} Ke7 {[%emt 0:01:09]} 28. Rd2 {[%emt 0:02:32]} Kf6 {[%emt 0:01:06]} 29. Re3 {[%emt 0:01:35]} Rxe3 {[%emt 0:04:31]} 30. Kxe3 {[%emt 0:00:32]} Ke5 {[%emt 0:00:07]} 31. Rd4 {[%emt 0:02:37]} f5 {[%emt 0:01:02]} 32. exf5 {[%emt 0:00:45]} exf5 {[%emt 0:02:16]} 33. g3 {[%emt 0:00:42]} Be4 {[%emt 0:02:01]} 34. Rd8 {[%emt 0:00:28]} Bd5 {[%emt 0:00:50]} 35. Rf8 {[%emt 0:00:30]} b5 {[%emt 0:00:29]} 36. h5 {[%emt 0:00:10]} b4 {[%emt 0:02:01]} 37. h6 {[%emt 0:00:11]} b3 {[%emt 0:01:36]} 38. h7 {[%emt 0:00:14]} 1-0

[Event "Int SVK-ch Open 2020"]
[Site "Drienica"]
[Date "2020.08.08"]
[Round "2.8"]
[White "Marsina, Stefan"]
[Black "Dragula, Miroslav"]
[Result "1-0"]
[ECO "D45"]
[WhiteElo "1829"]
[BlackElo "1571"]
[Annotator "NA RC"]
[PlyCount "147"]
[EventDate "2020.08.07"]
[EventType "swiss"]
[EventCountry "SVK"]
[SourceTitle "playchess.com"]
[Source "ChessBase"]
[SourceQuality "1"]
[TimeControl "40/5400+30:1800+30"]

{[%evp 9,147,17,32767,18,32767,32767,16,13,32767,-12,-3,32767,-139,-141,-63,32767,32767,32767,32767,32767,32767,32767,32767,32767,32767,32767,32767,0,27,21,15,32767,32767,16,32767,32767,32767,32767,32767,35,70,4,22,-9,66,28,32767,32767,32767,32767,106,89,32767,76,71,76,91,70,88,0,32767,0,85,75,32767,89,135,0,102,73,68,67,82,54,32767,32767,202,32767,32767,32767,175,143,149,0,32767,149,177,183,306,209,206,215,408,187,308,358,350,212,197,297,294,279,274,200,481,570,589,619,953,32767,32767,32767,32767,32767,32767,689,778,573,628,524,582,483,573,610,710,864,722,549,568,608,1875,5261,2036,6231,5406,29977,29983,29987,29986,29988]} 1. d4 {[%emt 0:01:48]} e6 {[%emt 0:00:00]} 2. Nf3 {[%emt 0:00:33]} d5 {[%emt 0:00:01]} 3. c4 {[%emt 0:01:46]} Nf6 {[%emt 0:00:29]} 4. Nc3 {[%emt 0:01:22]} c6 {[%emt 0:01:15]} 5. e3 {[%emt 0:02:02]} Be7 {[%emt 0:00:29]} 6. Bd3 {[%emt 0:00:08]} h6 {[%emt 0:00:19] D45: Semi-Slav: 5 e3.} 7. Qc2 {[%emt 0:00:47]} Nbd7 {[%emt 0:00:51]} 8. a3 {[%emt 0:03:22] [#]} Nb6 $146 {[%emt 0:01:39]} ({Predecessor:} 8... dxc4 9. Bxc4 Nb6 10. Ba2 Nfd5 11. O-O O-O 12. e4 Nxc3 13. bxc3 Nd7 14. e5 Re8 {1-0 (44) Vachev,V (2132)-Golikov,S (1733) Varna 2014}) 9. Ne5 {[%emt 0:06:37]} (9. c5 $14 Nbd7 10. b4) 9... dxc4 {[%emt 0:01:28]} 10. Bg6 {[%emt 0:00:58]} O-O {[%emt 0:00:37]} 11. Be4 {[%emt 0:05:30]} Nxe4 {[%emt 0:01:37]} ({Black should try} 11... c5 $17 12. dxc5 Bxc5) 12. Nxe4 {[%emt 0:00:03]} Nd5 {[%emt 0:00:59]} 13. Qxc4 {[%emt 0:04:13]} Nf6 {[%emt 0:00:33]} 14. Nc3 {[%emt 0:01:41]} Nd7 {[%emt 0:01:42]} 15. Nf3 {[%emt 0:07:07]} Nb6 {[%emt 0:01:01]} 16. Qe2 {[%emt 0:09:18]} Nd5 {[%emt 0:01:06]} 17. Bd2 {[%emt 0:05:35]} Nf6 {[%emt 0:00:19]} 18. O-O {[%emt 0:02:03]} b5 {[%emt 0:00:45]} 19. Rfc1 {[%emt 0:09:30]} a5 {[%emt 0:04:08]} 20. Ne5 {[%emt 0:06:31]} Bb7 {[%emt 0:02:19]} 21. Na2 {[%emt 0:02:03]} Ra6 {[%emt 0:02:04]} 22. b4 {[%emt 0:05:07]} Qa8 {[%emt 0:01:08]} 23. f3 {[%emt 0:08:05]} Rd8 {[%emt 0:01:32]} 24. Rab1 {[%emt 0:04:39]} Nd5 {[%emt 0:00:28]} 25. e4 {[%emt 0:01:53]} (25. Rc2 $14) 25... Nf6 {[%emt 0:03:18]} 26. Qf2 {[%emt 0:02:15]} axb4 {[%emt 0:00:51]} (26... Nd7 $11) 27. Nxb4 {[%emt 0:00:57]} Bxb4 {[%emt 0:12:16]} 28. Bxb4 {[%emt 0:00:02]} Rc8 {[%emt 0:00:15]} 29. Rc3 {[%emt 0:00:26]} Qb8 {[%emt 0:06:00]} 30. Rbc1 {[%emt 0:00:50]} Qc7 {[%emt 0:01:22]} 31. Qc2 {[%emt 0:00:31]} Nd7 {[%emt 0:02:36]} 32. Nd3 {[%emt 0:00:41]} Qd8 {[%emt 0:05:50]} 33. Qf2 {[%emt 0:00:28]} Qe8 {[%emt 0:02:44]} 34. Qc2 {[%emt 0:00:29]} Nb8 {[%emt 0:01:11]} 35. Qf2 {[%emt 0:01:08]} (35. Nc5 $16 Ra7 36. Nxb7 Rxb7 37. d5) 35... Nd7 {[%emt 0:00:59]} 36. h3 {[%emt 0:00:55]} Ba8 {[%emt 0:00:38]} 37. Qg3 {[%emt 0:01:16]} Ra7 {[%emt 0:03:32]} 38. Qf2 {[%emt 0:01:33]} (38. d5 $16) 38... Ra6 $1 {[%emt 0:00:11]} 39. Qe3 {[%emt 0:01:08]} Bb7 {[%emt 0:00:45]} 40. Qf4 {[%emt 0:00:50]} f6 {[%emt 0:04:07]} 41. Qd2 {[%emt 0:30:30]} Kf7 {[%emt 0:35:21]} 42. Kh1 {[%emt 0:00:41]} g5 {[%emt 0:02:45]} (42... Kg8 $16) 43. Qa2 {[%emt 0:00:00]} Kg7 {[%emt 0:00:00]} 44. Qc2 {[%emt 0:00:00]} Kg8 {[%emt 0:00:00]} 45. Qf2 {[%emt 0:00:00]} Kg7 {[%emt 0:00:00]} 46. Qc2 $2 {[%emt 0:00:00]} (46. f4 $16) 46... Qg6 {[%emt 0:00:00]} 47. Qe2 {[%emt 0:00:00]} Qe8 {[%emt 0:00:00]} 48. f4 {[%emt 0:00:00]} Kg6 {[%emt 0:00:00]} (48... Raa8 $142 49. fxg5 hxg5) 49. Re1 {[%emt 0:00:00]} Kg7 {[%emt 0:00:00]} 50. f5 {[%emt 0:00:00]} Raa8 $2 {[%emt 0:00:00]} (50... c5) 51. Qa2 {[%emt 0:00:00]} (51. e5 $142) 51... e5 {[%emt 0:00:00]} (51... c5 $16) 52. dxe5 {[%emt 0:00:37]} Nxe5 {[%emt 0:00:00]} 53. Nc5 {[%emt 0:00:29]} Ra7 {[%emt 0:00:00]} 54. Ne6+ {[%emt 0:00:23]} Kh8 {[%emt 0:00:00]} 55. Qf2 {[%emt 0:00:35]} Raa8 {[%emt 0:00:00]} 56. Qd4 {[%emt 0:01:37]} (56. Bd6 $142) 56... Qd7 $2 {[%emt 0:00:00]} (56... Qf7 57. Rd1 Rg8) 57. Bd6 {[%emt 0:01:01]} Ra4 {[%emt 0:00:37]} 58. Qd1 {[%emt 0:00:53]} Qf7 {[%emt 0:02:08]} 59. Nc5 {[%emt 0:01:25]} Rc4 {[%emt 0:02:59]} 60. Bxe5 {[%emt 0:03:00]} fxe5 {[%emt 0:00:43]} 61. Rxc4 {[%emt 0:00:34]} bxc4 {[%emt 0:01:29]} 62. Qd6 {[%emt 0:01:04] Double Attack} Qg7 {[%emt 0:01:35]} 63. Nxb7 {[%emt 0:00:04]} Qxb7 {[%emt 0:01:06]} 64. Qxh6+ {[%emt 0:00:08]} Qh7 {[%emt 0:00:41]} 65. Qxg5 {[%emt 0:00:18]} Qg7 {[%emt 0:00:58]} 66. Qh4+ {[%emt 0:00:37]} Kg8 {[%emt 0:00:25]} 67. Rd1 {[%emt 0:00:22]} c3 {[%emt 0:00:50]} 68. Rd6 {[%emt 0:01:03]} c2 {[%emt 0:00:31]} 69. Qe1 {[%emt 0:00:29]} Kf8 {[%emt 0:01:20]} 70. Qc3 {[%emt 0:00:21]} Qe7 {[%emt 0:00:59]} 71. Re6 {[%emt 0:00:31]} c1=Q+ {[%emt 0:01:25]} 72. Qxc1 {[%emt 0:00:03]} Qg7 {[%emt 0:00:25]} 73. Qc5+ {[%emt 0:00:24] Double Attack} Kg8 {[%emt 0:00:25] [#]} 74. Rg6 {[%emt 0:00:08]} 1-0

[Event "Int SVK-ch Open 2020"]
[Site "Drienica"]
[Date "2020.08.08"]
[Round "2.9"]
[White "Priechodsky, Radovan"]
[Black "Pastir Stanislav"]
[Result "1-0"]
[ECO "A25"]
[WhiteElo "2003"]
[BlackElo "2145"]
[Annotator "ChessBase"]
[PlyCount "45"]
[EventDate "2020.08.07"]
[EventType "swiss"]
[EventCountry "SVK"]
[SourceTitle "playchess.com"]
[Source "ChessBase"]
[SourceQuality "1"]
[TimeControl "40/5400+30:1800+30"]

1. c4 {[%emt 0:00:00]} e5 {[%emt 0:01:56]} 2. Nc3 {[%emt 0:01:07]} Nc6 {[%emt 0:00:45]} 3. d3 {[%emt 0:01:46]} Bc5 {[%emt 0:00:45]} 4. g3 {[%emt 0:04:40]} d6 {[%emt 0:00:25]} 5. Bg2 {[%emt 0:04:04]} a6 {[%emt 0:00:35]} 6. Nf3 {[%emt 0:03:24]} f5 {[%emt 0:06:53]} 7. e3 {[%emt 0:01:24]} Nf6 {[%emt 0:01:24]} 8. O-O {[%emt 0:03:05]} Ba7 {[%emt 0:00:55]} 9. Rb1 {[%emt 0:02:33]} O-O {[%emt 0:01:16]} 10. b4 {[%emt 0:00:26]} Qe8 {[%emt 0:09:57]} 11. b5 {[%emt 0:07:10]} axb5 {[%emt 0:00:04]} 12. Nxb5 {[%emt 0:00:26]} Bb6 {[%emt 0:00:25]} 13. Nxd6 {[%emt 0:06:06]} cxd6 {[%emt 0:04:42]} 14. Rxb6 {[%emt 0:12:43]} Rxa2 {[%emt 0:06:50]} 15. Qb3 {[%emt 0:01:48]} Ra1 {[%emt 0:07:44]} 16. Ba3 {[%emt 0:04:35]} Rxf1+ {[%emt 0:00:07]} 17. Kxf1 {[%emt 0:11:46]} Qe7 {[%emt 0:01:03]} 18. Ng5 {[%emt 0:08:59]} Nd7 {[%emt 0:45:13]} 19. Bxd6 {[%emt 0:20:07]} Qxg5 {[%emt 0:00:03]} 20. Bd5+ {[%emt 0:00:41]} Rf7 {[%emt 0:01:04]} 21. Rxb7 {[%emt 0:01:51]} Qf6 {[%emt 0:05:23]} 22. Rc7 {[%emt 0:00:58]} Qxd6 {[%emt 0:02:55]} 23. Rxc8+ {[%emt 0:00:19]} 1-0

[Event "Int SVK-ch Open 2020"]
[Site "Drienica"]
[Date "2020.08.08"]
[Round "2.9"]
[White "Sedlak, Mikulas"]
[Black "Nandrazi, Dominik"]
[Result "1-0"]
[ECO "B15"]
[WhiteElo "1573"]
[BlackElo "1883"]
[Annotator "NA"]
[PlyCount "117"]
[EventDate "2020.08.07"]
[EventType "swiss"]
[EventCountry "SVK"]
[SourceTitle "playchess.com"]
[Source "ChessBase"]
[SourceQuality "1"]
[TimeControl "40/5400+30:1800+30"]

{[%evp 13,117,33,32767,32767,32767,32767,32767,32767,32767,32767,0,32767,23,-10,32767,32767,32767,0,32,32767,32767,32767,32767,32767,0,32767,32767,-41,9,-124,-126,32767,-118,32767,-134,32767,-145,32767,32767,-108,32767,32767,-91,32767,-100,32767,32767,-127,32767,32767,-153,-194,-150,-134,32767,-175,-189,-183,-144,-133,-110,-180,-177,-165,-184,-196,-204,-200,-210,32767,32767,32767,32767,32767,-241,32767,-209,32767,32767,32767,-324,-433,-468,-428,32767,32767,201,570,626,713,577,644,572,895,880,833,714,780,920,2047,1494,1141,1156,1481,1132,4204]} 1. e4 {[%emt 0:00:00]} c6 {[%emt 0:00:00]} 2. d4 {[%emt 0:00:29]} d5 {[%emt 0:00:00]} 3. Nc3 {[%emt 0:00:15]} h6 {[%emt 0:00:00]} 4. Nf3 {[%emt 0:00:26]} dxe4 {[%emt 0:00:00]} 5. Nxe4 {[%emt 0:00:17]} Bf5 {[%emt 0:00:00]} 6. Ng3 {[%emt 0:00:07]} Bh7 {[%emt 0:00:00]} 7. Bd3 {[%emt 0:00:31]} Bxd3 {[%emt 0:00:03]} 8. Qxd3 {[%emt 0:00:01]} e6 {[%emt 0:00:07] B18: Classical Caro-Kann: 4...Bf5 sidelines.} 9. Bd2 {[%emt 0:00:26]} Nf6 {[%emt 0:00:06]} 10. Ne4 {[%emt 0:00:56]} Nbd7 {[%emt 0:00:06]} 11. O-O-O {[%emt 0:00:42]} Nxe4 {[%emt 0:01:47]} 12. Qxe4 {[%emt 0:00:12]} Nf6 {[%emt 0:00:03] [#]} 13. Qd3 $146 {[%emt 0:00:04]} ({Predecessor:} 13. Qe2 Qc7 14. g3 Bd6 15. c4 b6 16. Kb1 Qe7 17. Rhe1 Bb4 18. Bxb4 Qxb4 19. d5 cxd5 20. cxd5 {1-0 (47) Richardson,J (2248)-Makepeace,P (2077) London 2016}) 13... Bd6 {[%emt 0:01:18]} 14. Qe2 {[%emt 0:02:20]} Qc7 {[%emt 0:00:50]} 15. Kb1 {[%emt 0:01:23]} O-O {[%emt 0:04:29]} 16. h3 {[%emt 0:01:43]} c5 {[%emt 0:03:19]} 17. dxc5 {[%emt 0:01:59]} Bxc5 {[%emt 0:00:21]} 18. Bc3 {[%emt 0:01:57]} Nd5 {[%emt 0:00:24]} 19. Be5 Qb6 {[%emt 0:00:18]} 20. Ka1 {[%emt 0:12:30]} Bxf2 {[%emt 0:04:47]} 21. Bd4 {[%emt 0:02:58]} (21. c4 $11 Ne7 22. b4) 21... Bxd4 {[%emt 0:00:03]} 22. Nxd4 {[%emt 0:00:24]} Rac8 {[%emt 0:01:02]} 23. c3 {[%emt 0:01:42]} Rc5 {[%emt 0:00:36]} 24. Nb3 {[%emt 0:00:35]} Rc7 {[%emt 0:00:19]} 25. g4 {[%emt 0:01:30]} a5 {[%emt 0:00:26]} 26. Nd4 {[%emt 0:08:09]} a4 {[%emt 0:01:10]} 27. a3 {[%emt 0:03:27]} Rfc8 {[%emt 0:01:29]} 28. Rb1 {[%emt 0:02:50]} Rc4 {[%emt 0:08:40]} 29. Rhc1 {[%emt 0:05:53]} Nf4 {[%emt 0:04:24]} 30. Qf3 {[%emt 0:04:38]} Nd5 {[%emt 0:08:05]} 31. Qe2 {[%emt 0:03:32]} Qc5 {[%emt 0:00:40]} 32. Qe5 {[%emt 0:06:32]} Qc7 {[%emt 0:02:54]} 33. Qxc7 {[%emt 0:02:19]} R8xc7 {[%emt 0:00:10]} 34. Re1 {[%emt 0:02:48]} Nf4 {[%emt 0:01:40]} 35. Re3 {[%emt 0:00:49]} R7c5 {[%emt 0:00:35]} 36. Rf1 {[%emt 0:00:59]} e5 {[%emt 0:00:30]} 37. Nc2 {[%emt 0:01:32]} (37. Nf3 $17 Ng6 38. Rfe1) 37... f6 {[%emt 0:00:22]} 38. Nb4 {[%emt 0:01:20]} Kh7 {[%emt 0:00:17]} 39. Rd1 {[%emt 0:01:05]} Kg6 {[%emt 0:03:21]} 40. Rd7 {[%emt 0:01:50]} Rc7 {[%emt 0:00:04]} 41. Rd2 {[%emt 0:31:23]} Ne6 {[%emt 0:31:41]} 42. Kb1 {[%emt 0:02:24]} Nc5 {[%emt 0:00:18]} 43. Kc2 {[%emt 0:01:22]} Nb3 {[%emt 0:00:18]} 44. Rd6 {[%emt 0:01:06]} Kg5 {[%emt 0:00:35]} 45. Kb1 {[%emt 0:00:42]} Rf4 {[%emt 0:00:22]} 46. Rd1 {[%emt 0:01:11]} Rf2 {[%emt 0:01:27]} 47. Nd5 {[%emt 0:00:56]} Rd7 {[%emt 0:00:12]} 48. Red3 {[%emt 0:01:36]} e4 {[%emt 0:00:06]} 49. Nxf6 {[%emt 0:01:49]} Rxb2+ $4 {[%emt 0:02:15]} ({Weaker is} 49... exd3 50. Nxd7 Re2 51. Nb6 $19) (49... Re7 $19 {avoids the disaster.} 50. Nd5 Re5 51. h4+ Kg6) 50. Kxb2 {[%emt 0:01:15]} Rxd3 {[%emt 0:00:36]} 51. Nxe4+ {[%emt 0:00:34]} Kf4 {[%emt 0:00:04]} 52. Rxd3 {[%emt 0:00:24]} Kxe4 {[%emt 0:00:04]} 53. Rd7 {[%emt 0:00:33] Double Attack} g5 {[%emt 0:00:14]} 54. Rxb7 {[%emt 0:01:15]} Nc5 {[%emt 0:00:07]} 55. Rh7 {[%emt 0:00:37]} Kf4 {[%emt 0:00:45]} 56. Rxh6 {[%emt 0:01:06]} (56. Kc2 $142 Ne4 57. Rxh6) 56... Nd3+ {[%emt 0:00:11]} 57. Kc2 {[%emt 0:00:16]} Ne1+ {[%emt 0:00:06]} 58. Kd2 {[%emt 0:00:16]} Nf3+ {[%emt 0:00:02]} 59. Ke2 $18 {[%emt 0:00:38]} 1-0